bitfinex/quotes_ETHUSD_20260131
["timestamp","ask_amount","ask_price","bid_price","bid_amount"]
[1769850231909,13.26152929,2649.7,2647.8,12.6860229]
[1769850232115,30.1024,2649.6,2647.9,0.2335703]
[1769850232307,13.36392929,2649.6,2647.9,0.2335703]
[1769850232536,13.26152929,2649.6,2647.9,1.74795678]
[1769850232745,13.36392929,2649.5,2647.9,1.51438648]
[1769850233426,13.36392929,2649.5,2647.9,1.52588205]
[1769850233610,13.36392929,2649.5,2647.9,1.51438648]
[1769850233810,13.36392929,2649.5,2647.9,1.52588205]
[1769850234040,13.26152929,2649.5,2648.0,1.51560591]
[1769850234735,0.1024,2649.4,2648.0,1.44009717]
[1769850235123,13.36392929,2649.4,2648.0,1.44009717]
[1769850238342,13.36392929,2649.4,2648.0,14.12612007]
[1769850238646,13.36492929,2649.7,2648.1,12.93108877]
[1769850238845,13.36492929,2649.7,2648.3,12.6860229]
[1769850239033,13.36492929,2649.7,2648.4,0.43752071]
[1769850240137,0.001,2649.7,2648.4,13.12354361]
[1769850240344,0.001,2649.7,2648.5,0.43752071]
[1769850240552,0.001,2649.7,2648.6,1.31235436]
[1769850240849,0.001,2649.7,2648.6,13.99837726]
[1769850241053,0.001,2649.7,2648.7,3.979]
[1769850241225,0.001,2649.7,2648.7,12.6860229]
[1769850241610,0.001,2649.7,2648.8,12.6860229]
[1769850241848,0.001,2649.7,2648.9,13.95462519]
[1769850242047,0.1024,2650.4,2649.0,13.12354361]
[1769850242227,0.1024,2650.4,2649.1,0.43752071]
[1769850242855,13.26152929,2650.9,2649.2,13.35711391]
[1769850243161,13.26152929,2650.9,2649.4,13.62963277]
[1769850243319,0.1024,2650.8,2649.4,13.62963277]
[1769850244940,13.36492929,2651.2,2649.4,13.62963277]
[1769850246118,13.36492929,2651.2,2649.5,13.12354361]
[1769850246321,13.26252929,2651.2,2649.7,13.62952593]
[1769850246533,13.26252929,2651.2,2649.8,0.43752071]
[1769850246534,0.1024,2651.1,2649.8,0.43752071]
[1769850247032,0.001,2651.0,2649.8,13.78976458]
[1769850247461,13.29372397,2650.6,2649.9,0.43752071]
[1769850247767,13.29372397,2650.6,2650.0,0.43752071]
[1769850249156,13.29372397,2650.6,2649.3,1.33686095]
[1769850249458,13.29372397,2650.6,2649.2,0.94367772]
[1769850249755,13.29372397,2650.6,2649.1,14.52950582]
[1769850251226,13.29372397,2650.6,2649.2,3.979]
[1769850251554,13.29372397,2650.6,2649.2,17.33124387]
[1769850251719,13.29372397,2650.6,2649.3,13.35224387]
[1769850251925,0.1034,2651.0,2649.6,13.35224387]
[1769850254764,0.1034,2651.0,2649.6,13.27678072]
[1769850254969,0.1034,2651.0,2649.6,13.27518072]
[1769850255770,0.1034,2651.0,2649.6,14.21871785]
[1769850256285,0.1034,2651.0,2649.6,4.92253713]
[1769850256474,0.1034,2651.0,2649.7,14.22192505]
[1769850256674,0.001,2651.0,2649.8,13.35224387]
[1769850256890,0.001,2651.0,2650.1,13.35224387]
[1769850257568,0.001,2651.0,2649.8,0.2335703]
[1769850257753,13.29472397,2651.0,2649.8,0.2335703]
[1769850257946,13.29472397,2651.0,2649.8,1.53990284]
[1769850258676,13.29472397,2651.0,2649.7,0.86968118]
[1769850259339,13.29372397,2650.9,2649.7,0.81968118]
[1769850259541,13.29372397,2650.9,2649.6,0.0011]
[1769850260159,0.001,2651.0,2649.6,17.33234387]
[1769850260364,0.001,2651.0,2649.7,13.35224387]
[1769850260560,0.001,2651.0,2649.7,14.29574528]
[1769850260773,0.001,2651.0,2649.8,15.1798284]
[1769850261167,0.001,2651.0,2650.0,13.35224387]
[1769850263484,0.001,2651.0,2650.1,13.58581417]
[1769850264384,0.001,2651.2,2650.3,17.56481417]
[1769850264558,13.57456543,2651.4,2650.2,0.791]
[1769850264759,0.1024,2651.3,2650.1,1.0245703]
[1769850264958,0.1024,2651.3,2650.1,0.791]
[1769850265651,0.1024,2651.3,2650.1,14.14324387]
[1769850265855,0.1024,2651.6,2650.3,13.35224387]
[1769850266484,13.39612397,2651.3,2650.2,1.41432439]
[1769850266687,13.39612397,2651.3,2650.2,0.2335703]
[1769850266886,0.1024,2651.3,2650.2,13.58581417]
[1769850267570,0.1024,2651.5,2650.2,13.58581417]
[1769850267775,13.29372397,2652.5,2650.5,13.58581417]
[1769850267978,13.39612397,2652.4,2650.5,13.58581417]
[1769850268178,0.1024,2651.8,2650.5,13.58581417]
[1769850268378,13.39612397,2651.8,2650.5,13.58581417]
[1769850268588,13.39612397,2651.8,2650.6,1.75648142]
[1769850269974,13.39612397,2651.8,2650.6,15.10872529]
[1769850270372,0.1024,2652.0,2650.6,16.05190515]
[1769850270761,0.1024,2652.0,2650.6,15.10872529]
[1769850271090,13.29372397,2652.0,2650.7,15.37869251]
[1769850271458,13.29372397,2652.0,2650.7,19.35769251]
[1769850271659,0.1024,2651.9,2650.7,2.02644864]
[1769850271892,13.29372397,2651.8,2650.6,14.14324387]
[1769850272064,13.29372397,2651.8,2650.7,0.2335703]
[1769850272464,13.29372397,2651.8,2650.7,4.2125703]
[1769850272770,13.29372397,2651.8,2650.6,14.14324387]
[1769850272771,13.29472397,2651.8,2650.8,1.83558142]
[1769850273160,0.001,2651.8,2650.8,1.83558142]
[1769850274514,0.001,2651.8,2650.9,13.35224387]
[1769850274659,0.001,2651.8,2650.9,13.27681061]
[1769850275169,13.29372397,2651.7,2650.0,13.35224387]
[1769850275368,13.29372397,2651.5,2650.0,13.35224387]
[1769850275568,13.29372397,2651.5,2650.1,1.41432439]
[1769850275793,13.29372397,2651.5,2650.1,14.76656826]
[1769850276362,13.29372397,2651.5,2650.1,19.68892309]
[1769850276787,13.29372397,2651.5,2650.2,13.18455375]
[1769850279399,13.58663114,2650.7,2649.6,0.0011]
[1769850283598,0.1024,2650.9,2649.6,0.0011]
[1769850283823,13.22455657,2650.9,2649.6,0.0011]
[1769850284005,13.12215657,2650.9,2649.6,0.0011]
[1769850284306,0.1024,2650.8,2649.6,0.0011]
[1769850284514,13.12215657,2650.4,2649.6,0.0011]
[1769850284685,13.12215657,2649.6,2649.0,999.85245644]
[1769850284887,0.38774312,2651.0,2649.0,999.85245644]
[1769850284888,13.22455657,2649.9,2649.0,997.67357845]
[1769850285104,0.32433584,2651.4,2649.0,983.67357845]
[1769850285105,0.1024,2649.5,2649.0,983.67357845]
[1769850285393,0.1024,2649.4,2649.0,983.67357845]
[1769850286878,0.1024,2649.2,2649.0,983.67357845]
[1769850287287,13.22455657,2649.2,2649.0,963.75086977]
[1769850287519,13.12215657,2649.1,2649.0,958.24900777]
[1769850287840,13.12215657,2649.1,2649.0,952.37986577]
[1769850288119,18.99634557,2649.1,2649.0,940.53787377]
[1769850288281,13.12215657,2649.1,2649.0,932.92619477]
[1769850288482,13.12215657,2649.1,2649.0,927.02366551]
[1769850288681,13.12215657,2649.1,2649.0,924.34169951]
[1769850288886,13.12215657,2649.1,2649.0,914.10612271]
[1769850289130,16.86265657,2649.1,2649.0,912.67174562]
[1769850289279,16.40871657,2649.1,2649.0,912.67174562]
[1769850289477,15.46289057,2649.1,2649.0,912.56808975]
[1769850289707,15.46289057,2649.1,2649.0,912.16056266]
[1769850290130,13.22455657,2649.1,2649.0,889.95068366]
[1769850290329,13.61229969,2649.1,2649.0,884.4910929]
[1769850290535,14.02092673,2649.1,2649.0,870.79598458]
[1769850290727,13.22455657,2649.1,2649.0,866.29929003]
[1769850290931,13.22455657,2649.1,2649.0,836.29738003]
[1769850291109,13.22455657,2649.1,2649.0,829.49483803]
[1769850292006,13.22455657,2649.1,2649.0,829.49292803]
[1769850294725,13.22455657,2649.1,2649.0,829.41742927]
[1769850296811,13.22455657,2649.1,2649.0,827.09642105]
[1769850298236,0.05346242,2649.1,2649.0,827.09642105]
[1769850298545,13.12135657,2649.4,2649.0,827.09642105]
[1769850298751,13.12215657,2649.2,2649.0,827.09642105]
[1769850299529,13.12215657,2649.2,2649.0,808.64820405]
[1769850299842,13.12215657,2649.2,2649.0,808.60925405]
[1769850300349,17.08629857,2649.1,2649.0,789.28862705]
[1769850300553,13.22455657,2649.1,2649.0,789.28862705]
[1769850301514,13.22455657,2649.1,2649.0,787.14532605]
[1769850301843,13.12215657,2649.7,2649.0,787.09805724]
[1769850302020,13.12215657,2649.7,2649.1,15.9376]
[1769850302225,13.12215657,2649.7,2649.1,15.83392]
[1769850302421,7.98375195,2649.5,2649.0,783.44275524]
[1769850302745,7.98375195,2649.5,2649.0,783.39381766]
[1769850303815,0.1024,2649.8,2649.0,783.39381766]
[1769850304020,0.1024,2649.6,2649.0,783.39381766]
[1769850304345,0.1024,2649.4,2649.0,783.39381766]
[1769850305746,0.1024,2649.7,2649.0,783.39381766]
[1769850306049,0.1024,2649.5,2649.0,783.39381766]
[1769850306617,0.66320462,2651.2,2649.3,13.37076729]
[1769850306841,8.38825771,2651.5,2649.3,13.37076729]
[1769850307043,0.29039353,2651.4,2649.3,13.37076729]
[1769850307221,0.29039353,2651.4,2649.5,13.37076729]
[1769850307423,0.29039353,2651.4,2649.7,13.37076729]
[1769850307956,0.001,2651.8,2649.6,0.791]
[1769850307957,0.001,2651.8,2650.2,13.37076729]
[1769850308135,0.34981461,2653.0,2650.6,13.37076729]
[1769850308330,4.426075,2652.9,2650.8,13.37076729]
[1769850308544,0.1024,2652.7,2650.8,14.16176729]
[1769850308740,39.61547091,2652.6,2650.8,14.16176729]
[1769850308927,0.1024,2652.4,2650.8,14.16176729]
[1769850309121,8.88106527,2652.6,2650.8,13.37076729]
[1769850309122,0.1024,2652.2,2650.8,13.37076729]
[1769850309316,0.1024,2652.0,2650.4,13.37076729]
[1769850309523,0.1024,2651.8,2650.4,13.37076729]
[1769850309734,0.1024,2651.6,2650.4,13.37076729]
[1769850309935,0.1024,2651.4,2650.4,13.37076729]
[1769850310938,0.1024,2651.2,2650.4,13.37076729]
[1769850311134,0.1024,2651.0,2649.5,13.37076729]
[1769850311338,0.1024,2650.8,2649.5,14.84155169]
[1769850311561,0.1024,2650.8,2649.5,15.63255169]
[1769850312561,0.1024,2651.3,2649.5,15.63255169]
[1769850312756,0.41950999,2651.4,2649.7,13.37076729]
[1769850312757,0.1024,2651.1,2649.7,13.37076729]
[1769850313162,0.1024,2650.9,2649.7,13.37076729]
[1769850314260,0.76560462,2650.9,2649.7,13.37076729]
[1769850314831,0.76560462,2650.9,2649.7,13.29530414]
[1769850315265,0.76560462,2650.9,2649.7,14.70393455]
[1769850316664,0.1024,2651.9,2649.7,14.70393455]
[1769850316840,0.1024,2651.9,2649.9,13.37076729]
[1769850316841,0.66320462,2651.9,2649.9,13.37076729]
[1769850317047,0.66320462,2651.9,2650.1,13.37076729]
[1769850317565,0.66320462,2651.9,2650.3,13.37076729]
[1769850317766,0.66320462,2651.9,2650.0,1.59400406]
[1769850317767,0.66320462,2651.9,2650.5,13.37076729]
[1769850318462,0.1024,2651.8,2650.5,13.37076729]
[1769850318929,0.66320462,2651.7,2650.5,13.37076729]
[1769850319130,0.66320462,2651.7,2650.7,13.37076729]
[1769850320741,0.66320462,2651.7,2650.8,13.37076729]
[1769850321874,0.1024,2652.6,2651.0,13.37076729]
[1769850322171,3.203345,2652.6,2651.2,13.37076729]
[1769850322367,0.1024,2652.4,2651.2,13.37076729]
[1769850322536,0.1024,2652.4,2651.2,15.09484402]
[1769850322741,0.1024,2652.2,2651.2,15.09484402]
[1769850323370,0.66320462,2652.1,2651.2,15.09484402]
[1769850323940,0.1024,2652.0,2651.4,13.37076729]
[1769850324136,0.1024,2652.0,2651.5,15.09484402]
[1769850325076,0.66320462,2651.9,2651.5,13.37076729]
[1769850325953,0.1024,2652.8,2651.5,13.37076729]
[1769850326260,0.1024,2652.8,2650.6,1.41617673]
[1769850326261,0.1024,2652.6,2651.6,17.24076729]
[1769850326858,0.1024,2652.4,2651.6,3.87]
[1769850328386,0.66320462,2652.3,2651.7,13.37076729]
[1769850328584,0.66320462,2652.8,2651.9,13.37076729]
[1769850328753,0.66320462,2652.8,2651.8,3.87]
[1769850328957,0.66320462,2652.8,2651.5,13.37076729]
[1769850329557,4.252798,2652.7,2651.5,13.37076729]
[1769850329891,4.252798,2652.7,2650.7,13.37076729]
[1769850330054,0.66320462,2652.6,2650.9,13.37076729]
[1769850330380,0.1024,2652.4,2650.9,13.37076729]
[1769850330890,0.1024,2652.4,2651.1,13.37076729]
[1769850331080,0.1024,2652.2,2651.1,13.37076729]
[1769850331783,0.1024,2652.0,2651.2,13.37076729]
[1769850331986,0.66320462,2652.1,2651.2,13.37076729]
[1769850332657,0.59889264,2653.3,2651.2,13.37076729]
[1769850332990,8.35616747,2653.1,2651.3,13.37076729]
[1769850333180,12.063303,2653.0,2651.3,13.37076729]
[1769850333376,20.41947047,2653.0,2651.3,13.37076729]
[1769850333584,0.001,2652.0,2651.3,13.37076729]
[1769850333883,0.001,2652.0,2651.4,3.87]
[1769850334461,0.001,2652.0,2651.5,13.37076729]
[1769850334860,0.001,2652.0,2651.5,13.2953454]
[1769850335263,0.1024,2652.9,2651.5,13.2953454]
[1769850335599,0.1024,2652.7,2651.7,13.37076729]
[1769850337101,0.1024,2653.2,2651.7,13.37076729]
[1769850337257,0.1024,2653.0,2651.7,13.37076729]
[1769850337595,0.1024,2652.8,2651.7,13.37076729]
[1769850339197,0.1024,2653.2,2651.7,13.37076729]
[1769850339505,0.1024,2653.0,2651.7,13.37076729]
[1769850339691,0.1024,2652.8,2651.7,15.09484402]
[1769850340297,0.1024,2652.8,2651.7,13.37076729]
[1769850340605,0.1024,2652.8,2651.8,17.17348912]
[1769850340903,8.53422514,2653.2,2651.8,17.1719898]
[1769850341193,0.1024,2653.0,2651.8,17.1719898]
[1769850341387,0.1024,2652.8,2651.8,17.1719898]
[1769850341786,0.1024,2652.8,2650.7,1.17669306]
[1769850341787,8.53422514,2652.6,2650.9,13.30348912]
[1769850342096,0.1024,2652.4,2650.9,13.30348912]
[1769850342265,0.1024,2652.7,2651.0,13.30348912]
[1769850342466,8.43182514,2652.8,2651.0,15.0156881]
[1769850342467,0.1024,2652.5,2651.0,15.0156881]
[1769850342674,0.1024,2652.3,2651.0,13.30348912]
[1769850343867,0.1024,2652.1,2650.7,13.30348912]
[1769850344069,8.53422514,2651.9,2650.0,13.30348912]
[1769850344399,8.53422514,2651.7,2650.0,13.30348912]
[1769850344567,0.1024,2651.5,2650.0,13.30348912]
[1769850344774,0.1024,2651.3,2650.0,13.30348912]
[1769850344970,0.1024,2651.1,2650.0,13.30348912]
[1769850346109,0.1024,2651.1,2651.0,0.0011]
[1769850346275,0.1024,2651.5,2650.0,13.30348912]
[1769850346471,0.1024,2651.3,2650.0,14.4949517]
[1769850346671,0.1024,2651.1,2650.0,14.4949517]
[1769850347671,0.1024,2651.7,2650.0,14.4949517]
[1769850347877,0.1024,2651.5,2650.0,13.30348912]
[1769850348078,0.1024,2651.3,2650.0,13.30348912]
[1769850348279,0.1024,2651.1,2649.9,0.0011]
[1769850348508,0.1024,2651.1,2649.9,13.30458912]
[1769850348701,0.1024,2651.1,2649.9,14.63504803]
[1769850349782,8.53422514,2651.7,2649.9,14.63504803]
[1769850349982,0.1024,2651.5,2649.9,13.30458912]
[1769850350194,0.1024,2651.3,2649.9,13.30458912]
[1769850350679,0.1024,2651.1,2649.9,13.30458912]
[1769850351780,0.1024,2651.7,2649.9,14.63504803]
[1769850352005,20.664575,2651.7,2649.9,14.63504803]
[1769850352196,0.1024,2651.5,2649.9,14.63504803]
[1769850353694,0.1034,2652.1,2649.9,14.63504803]
[1769850353909,0.1024,2651.9,2650.1,13.30348912]
[1769850354104,0.1024,2651.7,2650.1,13.30348912]
[1769850354428,0.1024,2652.0,2650.1,13.30348912]
[1769850354601,2.36531,2652.0,2650.3,13.30348912]
[1769850354912,3.20753,2651.9,2650.3,13.22804874]
[1769850355089,0.1024,2651.9,2650.3,13.22804874]
[1769850355289,0.1024,2651.7,2650.3,13.22804874]
[1769850355820,0.1024,2651.7,2650.5,13.30348912]
[1769850356123,0.1024,2651.7,2650.7,13.30348912]
[1769850356283,0.1034,2652.1,2650.7,13.30348912]
[1769850356612,0.1024,2651.9,2650.7,13.30348912]
[1769850356816,0.1024,2651.7,2650.7,13.30348912]
[1769850357116,0.1034,2652.1,2650.7,14.76687292]
[1769850357315,0.1024,2651.9,2650.7,14.76687292]
[1769850358602,0.1034,2652.1,2650.7,14.76687292]
[1769850358806,0.1024,2651.9,2650.7,14.76687292]
[1769850359116,0.001,2651.7,2650.7,14.76687292]
[1769850359304,0.001,2652.1,2650.1,0.0011]
[1769850359305,0.001,2652.1,2650.9,13.30348912]
[1769850359502,0.001,2652.1,2650.9,13.30268912]
[1769850360821,1.04897388,2653.3,2651.2,13.30348912]
[1769850360993,18.13079,2653.2,2651.2,13.30348912]
[1769850361194,18.13079,2653.2,2651.4,13.30348912]
[1769850361439,0.1024,2653.1,2651.4,13.30348912]
[1769850361928,0.1024,2652.9,2651.4,13.30348912]
[1769850362091,8.61168312,2652.7,2651.0,13.30348912]
[1769850362293,0.1024,2652.5,2651.0,13.30348912]
[1769850362496,0.1024,2652.3,2651.1,1.33034891]
[1769850362711,3.115671,2652.2,2651.1,1.33034891]
[1769850363120,0.1024,2652.3,2651.1,14.63383803]
[1769850363323,0.1024,2652.3,2651.1,13.30348912]
[1769850363525,0.35250473,2653.2,2651.1,13.30348912]
[1769850363526,8.50928312,2652.9,2651.1,13.30348912]
[1769850363695,8.61168312,2652.4,2650.2,13.30348912]
[1769850363894,28.27164973,2652.8,2650.1,0.0011]
[1769850363895,0.1024,2652.2,2650.4,13.30348912]
[1769850364096,0.1024,2652.0,2650.4,13.30348912]
[1769850364301,0.1024,2651.8,2650.4,13.30348912]
[1769850364496,0.1024,2651.8,2650.6,13.30348912]
[1769850365526,8.50928312,2652.3,2650.6,13.30348912]
[1769850365527,0.1024,2652.2,2650.6,13.30348912]
[1769850365732,17.109114,2652.2,2650.6,13.30348912]
[1769850365932,0.1024,2652.0,2650.6,13.30348912]
[1769850366127,0.1024,2651.8,2650.6,13.30348912]
[1769850366332,0.1024,2651.6,2650.3,1.33045891]
[1769850366638,0.1024,2651.6,2650.2,13.30348912]
[1769850367343,0.1024,2651.9,2650.2,13.30348912]
[1769850367520,7.979175,2651.9,2650.2,13.30348912]
[1769850367720,8.61168312,2651.7,2650.1,0.0011]
[1769850368052,8.61168312,2651.5,2650.1,0.0011]
[1769850368253,0.1024,2651.3,2650.1,0.0011]
[1769850368414,0.1024,2651.1,2650.1,0.0011]
[1769850369144,0.1024,2650.9,2650.1,0.0011]
[1769850369349,0.1024,2650.9,2649.8,13.99910665]
[1769850369350,0.1024,2650.7,2649.4,13.99860665]
[1769850369539,0.1024,2650.5,2649.4,15.39857732]
[1769850369713,0.1024,2650.3,2649.4,13.99860665]
[1769850370854,8.61108912,2651.1,2649.4,13.99860665]
[1769850371017,0.1024,2650.9,2649.4,13.99860665]
[1769850371225,0.1024,2650.7,2649.4,13.99860665]
[1769850371534,8.61108912,2650.5,2649.0,783.34601766]
[1769850371717,8.61000012,2650.3,2649.0,783.34601766]
[1769850371914,0.1024,2650.1,2649.0,783.34601766]
[1769850372145,0.1024,2649.9,2649.0,783.34601766]
[1769850372468,0.1024,2649.7,2649.0,783.34601766]
[1769850372749,0.1024,2649.5,2649.0,783.34601766]
[1769850374023,0.76516077,2649.5,2649.0,782.5175667]
[1769850374226,0.1024,2649.3,2649.0,782.5175667]
[1769850374425,0.1024,2649.3,2649.0,786.29115161]
[1769850374625,0.35250473,2650.9,2649.1,13.99910665]
[1769850374626,0.53020861,2650.2,2649.1,13.99910665]
[1769850374826,0.1024,2650.1,2649.1,13.92362356]
[1769850375063,0.63260861,2650.1,2649.2,3.77358491]
[1769850375247,0.1024,2649.9,2649.2,3.77358491]
[1769850375416,0.1024,2649.9,2649.2,17.77269156]
[1769850376348,0.53020861,2650.0,2649.3,13.99910665]
[1769850376948,0.44680071,2651.0,2649.3,13.99910665]
[1769850377255,0.44680071,2651.0,2649.5,13.99910665]
[1769850377417,0.66276077,2650.9,2649.5,13.99910665]
[1769850377623,10.16071059,2650.9,2649.2,3.77358491]
[1769850377930,9.2075219,2650.7,2649.0,782.5175667]
[1769850378135,9.2075219,2650.5,2649.0,782.5175667]
[1769850378443,0.1024,2650.3,2649.0,782.5175667]
[1769850378639,0.1024,2650.1,2649.0,782.5175667]
[1769850378845,0.1024,2650.1,2649.0,800.29025826]
[1769850379252,0.1024,2649.9,2649.0,800.29025826]
[1769850379544,0.1024,2649.7,2649.0,800.29025826]
[1769850379719,0.1024,2649.7,2649.0,786.29115161]
[1769850379923,0.1024,2649.5,2649.0,782.5175667]
[1769850381502,0.1024,2649.4,2649.0,781.6402497]
[1769850381631,0.1024,2649.4,2649.0,763.7605447]
[1769850381943,0.1024,2649.2,2649.0,763.7605447]
[1769850382142,4.480207,2649.1,2649.0,748.92936736]
[1769850382453,0.1024,2649.1,2649.0,732.99109336]
[1769850382626,0.1024,2649.1,2649.0,719.49211399]
[1769850382826,0.1024,2649.1,2649.0,716.53810399]
[1769850383020,0.1024,2649.1,2649.0,715.40345952]
[1769850383564,0.1024,2649.1,2649.0,712.60339]
[1769850383764,0.1024,2649.1,2649.0,711.46874553]
[1769850384077,5.052065,2649.1,2649.0,705.33410106]
[1769850384380,0.05351168,2649.1,2649.0,705.33410106]
[1769850384568,0.05351168,2649.1,2649.0,704.19945659]
[1769850385076,0.05351168,2649.1,2649.0,703.06461468]
[1769850385453,0.05351168,2649.1,2649.0,701.92977277]
[1769850385886,0.05351168,2649.1,2649.0,700.79493086]
[1769850385887,2.84645268,2649.1,2649.0,700.79493086]
[1769850386182,4.27575268,2649.1,2649.0,699.66008895]
[1769850386387,3.74642168,2649.1,2649.0,699.66008895]
[1769850386586,3.74642168,2649.1,2649.0,698.52524704]
[1769850386880,2.65242168,2649.1,2649.0,698.52524704]
[1769850387050,2.65242168,2649.1,2649.0,697.39040513]
[1769850387453,2.65242168,2649.1,2649.0,696.25556322]
[1769850387771,2.65242168,2649.1,2649.0,695.12072131]
[1769850388288,0.05351168,2649.1,2649.0,693.9858794]
[1769850388589,0.05351168,2649.1,2649.0,692.85092586]
[1769850388955,0.05351168,2649.1,2649.0,691.71597232]
[1769850389364,0.05351168,2649.1,2649.0,690.58101878]
[1769850389568,2.19874468,2649.1,2649.0,690.58101878]
[1769850390760,0.05351168,2649.1,2649.0,685.22461066]
[1769850390965,0.05351168,2649.1,2649.0,671.16860366]
[1769850391168,0.05351168,2649.1,2649.0,661.40918612]
[1769850391479,0.05351168,2649.1,2649.0,657.94752583]
[1769850391680,0.05351168,2649.1,2649.0,636.32197537]
[1769850391852,0.05351168,2649.1,2649.0,632.03409341]
[1769850392050,0.05351168,2649.1,2649.0,628.80365293]
[1769850392267,0.05351168,2649.1,2649.0,625.51355593]
[1769850392466,9.30020068,2649.1,2649.0,624.37855945]
[1769850392661,11.18911368,2649.1,2649.0,624.37855945]
[1769850392863,9.9985219,2650.1,2649.0,624.37855945]
[1769850393085,3.89246,2650.0,2649.1,14.0608]
[1769850393590,9.2075219,2649.9,2649.0,619.72654213]
[1769850393888,5.648392,2649.8,2649.0,619.72654213]
[1769850394188,21.750479,2650.0,2649.0,619.72654213]
[1769850394352,26.723057,2650.0,2649.0,619.72654213]
[1769850394751,9.3099219,2649.6,2649.0,592.87799777]
[1769850394985,15.8660839,2649.5,2649.0,592.87799777]
[1769850395157,9.3099219,2649.5,2649.0,542.87799777]
[1769850395661,0.001,2649.3,2649.0,542.77799777]
[1769850396069,0.001,2649.3,2649.0,542.67431777]
[1769850396267,0.001,2649.3,2649.0,542.27981985]
[1769850397779,1.22609398,2650.1,2649.0,542.27981985]
[1769850397780,0.1024,2650.0,2649.0,542.27981985]
[1769850397962,2.449891,2650.0,2649.0,542.27981985]
[1769850398163,0.1024,2650.0,2649.0,542.27981985]
[1769850398784,0.1024,2649.8,2649.0,542.27981985]
[1769850399199,9.3099219,2649.6,2649.0,542.27981985]
[1769850399364,9.3099219,2649.6,2649.0,541.14496506]
[1769850399365,0.1024,2649.4,2649.0,541.14496506]
[1769850399568,0.1024,2649.2,2649.0,538.84446016]
[1769850399779,9.2075219,2649.6,2649.0,538.84446016]
[1769850399780,0.8934,2649.1,2649.0,537.02087373]
[1769850401304,0.8934,2649.1,2649.0,535.88601894]
[1769850401601,0.8934,2649.1,2649.0,535.78233894]
[1769850401902,0.8934,2649.1,2649.0,493.78962557]
[1769850402104,10.92561957,2649.1,2649.0,462.66929633]
[1769850402273,10.1009219,2649.1,2649.0,449.47210167]
[1769850402469,10.1009219,2649.1,2649.0,446.64860667]
[1769850402673,10.1009219,2649.1,2649.0,442.90047331]
[1769850402899,10.1009219,2649.1,2649.0,440.15095531]
[1769850403209,14.80346434,2649.1,2649.0,400.14182498]
[1769850403505,17.53491306,2649.1,2649.0,305.00124889]
[1769850403690,11.90324531,2649.1,2649.0,298.76367589]
[1769850403883,12.69424531,2649.1,2649.0,291.06514999]
[1769850404080,9.4942419,2649.1,2649.0,279.9049474]
[1769850404285,14.4978122,2649.1,2649.0,272.36866203]
[1769850404483,15.04560448,2649.1,2649.0,250.24736505]
[1769850404680,10.2852419,2649.1,2649.0,239.86433379]
[1769850404906,12.8165789,2649.1,2649.0,236.24026985]
[1769850405093,13.0836279,2649.1,2649.0,234.08588503]
[1769850405290,14.4978122,2649.1,2649.0,230.4622508]
[1769850405599,14.31527763,2649.1,2649.0,195.54646546]
[1769850405797,10.5188122,2649.1,2649.0,188.26866482]
[1769850405988,10.2852419,2649.1,2649.0,180.68114374]
[1769850406193,10.2852419,2649.1,2649.0,172.6592226]
[1769850406404,14.5500729,2649.1,2649.0,168.48151827]
[1769850406572,14.5500729,2649.1,2649.0,167.75796197]
[1769850406775,14.5500729,2649.1,2649.0,166.02669717]
[1769850406968,13.6829739,2649.1,2649.0,165.42973871]
[1769850407173,13.6829739,2649.1,2649.0,162.99965865]
[1769850407484,13.6829739,2649.1,2649.0,160.20494669]
[1769850407680,13.6829739,2649.1,2649.0,157.86914463]
[1769850407881,13.6829739,2649.1,2649.0,153.14973557]
[1769850408201,3.56949181,2649.1,2649.0,148.10598371]
[1769850408402,0.792,2649.1,2649.0,143.67796539]
[1769850408572,0.30131936,2649.2,2649.0,143.67796539]
[1769850408773,9.2075219,2649.6,2649.0,143.67796539]
[1769850409012,5.28954416,2649.5,2649.1,14.14768064]
[1769850409312,16.1113469,2649.5,2649.1,12.14768064]
[1769850409599,16.1113469,2649.5,2649.0,143.67796539]
[1769850409600,9.2075219,2649.5,2649.0,143.67796539]
[1769850409773,9.2075219,2649.3,2649.0,100.01459084]
[1769850409972,9.2075219,2649.1,2649.0,91.80874432]
[1769850410204,9.2075219,2649.1,2649.0,75.83881817]
[1769850410500,9.4942419,2649.1,2649.0,55.00227183]
[1769850410704,9.4942419,2649.1,2649.0,47.14939673]
[1769850410906,9.4942419,2649.1,2649.0,42.81062927]
[1769850411089,0.58789142,2649.1,2649.0,39.11992988]
[1769850411473,0.58789142,2649.1,2649.0,37.43447805]
[1769850411877,1.30344396,2649.1,2649.0,37.43447805]
[1769850412202,1.19557142,2649.1,2649.0,37.42747805]
[1769850412412,1.19557142,2649.1,2649.0,37.32379805]
[1769850413697,1.19557142,2649.1,2647.0,1000.0]
[1769850413698,9.3099219,2649.0,2647.0,1001.21087618]
[1769850413885,0.1024,2648.6,2647.1,12.91679727]
[1769850414074,9.54452743,2648.6,2647.1,12.86600381]
[1769850414280,0.18432,2648.4,2647.0,988.144611]
[1769850414482,0.1024,2648.2,2647.0,988.144611]
[1769850414693,0.1024,2648.2,2647.0,988.06907089]
[1769850415303,0.18432,2648.1,2647.0,988.06907089]
[1769850415495,0.1024,2648.0,2647.0,988.06907089]
[1769850415689,0.1024,2647.8,2647.0,988.06907089]
[1769850416186,0.50240707,2647.8,2647.0,988.0594522]
[1769850416392,0.1024,2647.6,2647.0,987.69849221]
[1769850416588,0.1024,2647.4,2647.0,987.23545999]
[1769850417783,0.1024,2647.4,2647.0,986.76259712]
[1769850418004,0.1024,2647.4,2647.0,986.37584444]
[1769850418313,0.1024,2647.4,2647.0,985.30666986]
[1769850419016,0.1024,2647.4,2647.0,984.79865372]
[1769850419220,0.1024,2647.4,2647.2,0.0011]
[1769850419394,0.1024,2647.4,2647.0,984.79975372]
[1769850419732,9.44103843,2647.1,2647.0,932.93639232]
[1769850420014,10.61244697,2647.1,2647.0,792.82475885]
[1769850420215,4.15686424,2647.1,2647.0,745.15853895]
[1769850420384,0.97632,2647.1,2647.0,720.62211727]
[1769850420585,0.97632,2647.1,2647.0,703.66211727]
[1769850420780,1.19135091,2647.1,2647.0,679.24846205]
[1769850421012,0.90074725,2647.1,2647.0,669.53084082]
[1769850421214,0.90074725,2647.1,2647.0,668.09548581]
[1769850421513,0.1016,2647.4,2647.0,664.95913079]
[1769850421716,0.8936,2647.4,2647.0,664.95913079]
[1769850421891,1.24469493,2647.4,2647.0,663.82277577]
[1769850422091,0.1024,2647.2,2647.0,658.80477577]
[1769850422292,0.45349493,2647.2,2647.0,652.18731996]
[1769850422517,0.45349493,2647.1,2647.0,651.35831418]